[Event "77th GEO-ch Women 2020"]
[Site "Tbilisi"]
[Date "2020.07.24"]
[Round "4.3"]
[White "Khomeriki, Nino"]
[Black "Batsiashvili, Nino"]
[Result "0-1"]
[ECO "E97"]
[WhiteElo "2319"]
[BlackElo "2457"]
[Annotator "ChessBase"]
[PlyCount "152"]
[EventDate "2020.07.21"]
[EventType "tourn"]
[EventCountry "GEO"]
[SourceTitle "playchess.com"]
[Source "ChessBase"]
[SourceQuality "1"]
[TimeControl "5400+30"]

1. d4 {[%emt 0:00:00]} Nf6 {[%emt 0:00:00]} 2. c4 {[%emt 0:00:00]} g6 {[%emt 0:00:00]} 3. Nc3 {[%emt 0:00:25]} Bg7 {[%emt 0:00:00]} 4. Nf3 {[%emt 0:00:11]} O-O {[%emt 0:00:00]} 5. e4 {[%emt 0:04:30]} d6 {[%emt 0:00:00]} 6. Be2 {[%emt 0:00:05]} e5 {[%emt 0:00:05]} 7. O-O {[%emt 0:00:46]} Nc6 {[%emt 0:00:11]} 8. Be3 {[%emt 0:08:44]} Ng4 {[%emt 0:03:04]} 9. Bg5 {[%emt 0:00:17]} f6 {[%emt 0:00:15]} 10. Bh4 {[%emt 0:01:03]} Nh6 {[%emt 0:06:57]} 11. dxe5 {[%emt 0:05:15]} dxe5 {[%emt 0:01:02]} 12. Qd5+ {[%emt 0:09:04]} Kh8 {[%emt 0:07:10]} 13. Rfd1 {[%emt 0:04:45]} Qe7 {[%emt 0:06:01]} 14. Qd2 {[%emt 0:03:51]} Qf7 {[%emt 0:00:59]} 15. h3 {[%emt 0:06:36]} g5 {[%emt 0:13:18]} 16. Bg3 {[%emt 0:00:06]} g4 {[%emt 0:02:12]} 17. hxg4 {[%emt 0:00:09]} Nxg4 {[%emt 0:00:05]} 18. Nd5 {[%emt 0:02:51]} Rg8 {[%emt 0:07:01]} 19. b4 {[%emt 0:05:06]} a5 {[%emt 0:08:02]} 20. b5 {[%emt 0:01:44]} Bh6 {[%emt 0:01:49]} 21. Qc3 {[%emt 0:02:56]} Nb4 {[%emt 0:01:37]} 22. Nxf6 {[%emt 0:15:37]} Qxf6 {[%emt 0:04:43]} 23. a3 {[%emt 0:06:32]} Bf4 {[%emt 0:05:50]} 24. axb4 {[%emt 0:09:45]} axb4 {[%emt 0:08:54]} 25. Qxb4 {[%emt 0:00:12]} Rxa1 26. Rxa1 {[%emt 0:00:05]} Qg7 {[%emt 0:03:52]} 27. Qc3 {[%emt 0:06:10]} Nxf2 {[%emt 0:03:18]} 28. Nxe5 {[%emt 0:00:10]} Nh3+ {[%emt 0:00:08]} 29. Kh1 {[%emt 0:01:24]} Be6 {[%emt 0:04:46]} 30. Rf1 {[%emt 0:05:58]} Bxg3 {[%emt 0:03:14]} 31. Ng6+ {[%emt 0:00:05]} hxg6 {[%emt 0:00:05]} 32. Qxg3 {[%emt 0:00:03]} Qh6 {[%emt 0:03:41]} 33. gxh3 {[%emt 0:00:18]} Qxh3+ {[%emt 0:00:11]} 34. Qxh3+ {[%emt 0:00:06]} Bxh3 {[%emt 0:00:05]} 35. Rf7 {[%emt 0:00:55]} Rg7 {[%emt 0:00:15]} 36. Rf8+ {[%emt 0:00:30]} Kh7 {[%emt 0:00:31]} 37. Kh2 {[%emt 0:00:13]} Bd7 {[%emt 0:00:13]} 38. Kg3 {[%emt 0:00:47]} Re7 {[%emt 0:00:45]} 39. Kf4 {[%emt 0:00:45]} Kg7 {[%emt 0:00:44]} 40. Rd8 {[%emt 0:00:05]} b6 {[%emt 0:00:58]} 41. Bd3 {[%emt 0:01:32]} Be6 {[%emt 0:01:15]} 42. Kg5 {[%emt 0:00:40]} Bf7 {[%emt 0:01:10]} 43. Rd4 {[%emt 0:00:38]} Re5+ {[%emt 0:00:32]} 44. Kf4 {[%emt 0:00:02]} Kf6 {[%emt 0:00:51]} 45. Ke3 {[%emt 0:01:03]} Rc5 {[%emt 0:01:26]} 46. Kf4 {[%emt 0:00:22]} g5+ {[%emt 0:00:11]} 47. Ke3 {[%emt 0:00:09]} Be6 {[%emt 0:01:13]} 48. Be2 {[%emt 0:00:16]} Ke5 {[%emt 0:00:10]} 49. Bf1 {[%emt 0:01:13]} g4 {[%emt 0:00:53]} 50. Rd2 {[%emt 0:00:27]} Bxc4 {[%emt 0:01:00]} 51. Bxc4 {[%emt 0:00:04]} Rxc4 {[%emt 0:00:02]} 52. Rd5+ {[%emt 0:00:04]} Ke6 {[%emt 0:00:39]} 53. Kf4 {[%emt 0:01:15]} Rc5 {[%emt 0:00:16]} 54. Rd1 {[%emt 0:00:19]} Rxb5 {[%emt 0:00:10]} 55. Rg1 {[%emt 0:00:08]} Rh5 {[%emt 0:02:25]} 56. Rxg4 {[%emt 0:00:23]} b5 {[%emt 0:01:01]} 57. Rg6+ {[%emt 0:00:18]} Kd7 {[%emt 0:00:05]} 58. e5 {[%emt 0:01:04]} b4 {[%emt 0:00:56]} 59. Rg7+ {[%emt 0:00:51]} Kc6 {[%emt 0:00:28]} 60. e6 {[%emt 0:00:18]} Rc5 {[%emt 0:00:58]} 61. Rd7 {[%emt 0:00:29]} Rc1 {[%emt 0:01:04]} 62. Rd4 {[%emt 0:00:48]} Re1 {[%emt 0:00:06]} 63. Kf5 {[%emt 0:00:05]} Kc5 {[%emt 0:00:21]} 64. Rd3 {[%emt 0:00:56]} Kc4 {[%emt 0:00:23]} 65. Rh3 {[%emt 0:00:30]} c5 {[%emt 0:00:42]} 66. Kf6 {[%emt 0:00:31]} b3 {[%emt 0:00:22]} 67. Rh2 {[%emt 0:00:19]} Kc3 {[%emt 0:01:16]} 68. Rh3+ {[%emt 0:00:38]} Kb4 {[%emt 0:00:08]} 69. e7 {[%emt 0:00:11]} b2 {[%emt 0:01:11]} 70. Rh8 {[%emt 0:00:02]} c4 {[%emt 0:00:56]} 71. Rb8+ {[%emt 0:00:10]} Ka3 {[%emt 0:00:18]} 72. Rb6 {[%emt 0:00:18]} Rxe7 {[%emt 0:00:17]} 73. Kxe7 {[%emt 0:00:04]} c3 {[%emt 0:00:06]} 74. Kd6 {[%emt 0:00:07]} c2 {[%emt 0:00:05]} 75. Ra6+ {[%emt 0:00:11]} Kb3 {[%emt 0:00:04]} 76. Rb6+ {[%emt 0:00:03]} Kc3 {[%emt 0:00:03]} 0-1

[Event "77th GEO-ch Women 2020"]
[Site "Tbilisi"]
[Date "2020.07.24"]
[Round "4.4"]
[White "Vakhania, Alexsandra"]
[Black "Khukhashvili, Sopiko"]
[Result "0-1"]
[ECO "B06"]
[WhiteElo "2138"]
[BlackElo "2339"]
[Annotator "ChessBase"]
[PlyCount "88"]
[EventDate "2020.07.21"]
[EventType "tourn"]
[EventCountry "GEO"]
[SourceTitle "playchess.com"]
[Source "ChessBase"]
[SourceQuality "1"]
[TimeControl "5400+30"]

1. e4 {[%emt 0:00:00]} g6 {[%emt 0:01:25]} 2. f4 {[%emt 0:00:26]} c6 {[%emt 0:00:29]} 3. Nf3 {[%emt 0:01:48]} d5 {[%emt 0:00:35]} 4. d4 {[%emt 0:04:04]} dxe4 {[%emt 0:03:59]} 5. Ng5 {[%emt 0:00:29]} Nf6 {[%emt 0:00:11]} 6. Bc4 {[%emt 0:00:09]} e6 {[%emt 0:00:04]} 7. Nc3 {[%emt 0:10:45]} Bg7 {[%emt 0:00:51]} 8. Ncxe4 {[%emt 0:02:59]} Nxe4 {[%emt 0:01:23]} 9. Nxe4 {[%emt 0:00:08]} Qxd4 {[%emt 0:01:09]} 10. Qe2 {[%emt 0:02:53]} O-O {[%emt 0:05:53]} 11. c3 {[%emt 0:00:27]} Qd8 {[%emt 0:00:51]} 12. Be3 {[%emt 0:00:38]} Nd7 {[%emt 0:01:09]} 13. Rd1 {[%emt 0:02:50]} Qe7 {[%emt 0:01:49]} 14. O-O {[%emt 0:01:25]} b6 {[%emt 0:04:35]} 15. Bf2 {[%emt 0:09:46]} b5 {[%emt 0:07:15]} 16. Bb3 {[%emt 0:00:21]} a5 {[%emt 0:00:08]} 17. Qf3 {[%emt 0:02:56]} a4 {[%emt 0:01:27]} 18. Bc2 {[%emt 0:00:05]} b4 {[%emt 0:05:00]} 19. Rfe1 {[%emt 0:00:52]} Ra5 {[%emt 0:06:17]} 20. Nd6 {[%emt 0:08:16]} Rd5 {[%emt 0:01:52]} 21. Nxc8 {[%emt 0:01:16]} Rxc8 {[%emt 0:00:05]} 22. Bxa4 {[%emt 0:00:04]} bxc3 {[%emt 0:03:11]} 23. bxc3 {[%emt 0:00:13]} Rf5 {[%emt 0:04:00]} 24. g3 {[%emt 0:08:16]} h5 {[%emt 0:02:33]} 25. Bd4 {[%emt 0:07:04]} Bxd4+ {[%emt 0:02:08]} 26. Rxd4 {[%emt 0:03:15]} Qc5 {[%emt 0:00:21]} 27. Kg2 {[%emt 0:02:49]} Nf6 {[%emt 0:00:43]} 28. Bc2 {[%emt 0:04:52]} Rd5 {[%emt 0:00:20]} 29. Bb3 {[%emt 0:00:15]} Rxd4 {[%emt 0:01:42]} 30. cxd4 {[%emt 0:00:05]} Qxd4 {[%emt 0:06:55]} 31. Rxe6 {[%emt 0:01:12]} c5 {[%emt 0:00:14]} 32. Qb7 {[%emt 0:04:36]} Rf8 {[%emt 0:00:37]} 33. Qe7 {[%emt 0:04:17]} Kg7 {[%emt 0:00:39]} 34. Rd6 {[%emt 0:09:15]} Qb2+ {[%emt 0:00:15]} 35. Kh3 {[%emt 0:00:05]} Ng4 {[%emt 0:10:45]} 36. Kh4 {[%emt 0:00:06]} Nxh2 {[%emt 0:00:14]} 37. Qe4 {[%emt 0:07:21]} Re8 {[%emt 0:05:11]} 38. Qd5 {[%emt 0:01:33]} Re7 {[%emt 0:02:27]} 39. f5 {[%emt 0:00:47]} Ng4 {[%emt 0:00:23]} 40. Rxg6+ {[%emt 0:00:18]} Kh7 {[%emt 0:01:22]} 41. Qd8 {[%emt 0:00:42]} Nh6 {[%emt 0:03:29]} 42. Kxh5 {[%emt 0:00:25]} Qh2+ {[%emt 0:00:27]} 43. Kg5 {[%emt 0:00:06]} Qxg3+ {[%emt 0:00:15]} 44. Kf6 {[%emt 0:00:44]} Qe5+ {[%emt 0:00:07]} 0-1

[Event "77th GEO-ch Women 2020"]
[Site "Tbilisi"]
[Date "2020.07.24"]
[Round "4.5"]
[White "Tsotsonava, Elene"]
[Black "Gvetadze, Sofio"]
[Result "0-1"]
[ECO "B80"]
[WhiteElo "2012"]
[BlackElo "2308"]
[Annotator "ChessBase"]
[PlyCount "48"]
[EventDate "2020.07.21"]
[EventType "tourn"]
[EventCountry "GEO"]
[SourceTitle "playchess.com"]
[Source "ChessBase"]
[SourceQuality "1"]
[TimeControl "5400+30"]

1. e4 {[%emt 0:00:00]} c5 {[%emt 0:00:00]} 2. Nf3 {[%emt 0:00:00]} e6 {[%emt 0:00:00]} 3. d4 {[%emt 0:00:00]} cxd4 {[%emt 0:00:00]} 4. Nxd4 {[%emt 0:00:00]} Nf6 {[%emt 0:00:01]} 5. Nc3 {[%emt 0:00:00]} d6 {[%emt 0:00:08]} 6. Bg5 {[%emt 0:00:02]} Be7 {[%emt 0:00:12]} 7. f4 {[%emt 0:03:53]} Nc6 {[%emt 0:05:13]} 8. Qd2 {[%emt 0:04:04]} a6 {[%emt 0:07:43]} 9. O-O-O {[%emt 0:00:10]} Qc7 {[%emt 0:00:32]} 10. Kb1 {[%emt 0:07:45]} Bd7 {[%emt 0:02:20]} 11. Bxf6 {[%emt 0:07:22]} gxf6 {[%emt 0:02:57]} 12. f5 {[%emt 0:00:24]} Ne5 {[%emt 0:00:57]} 13. Be2 {[%emt 0:08:10]} h5 {[%emt 0:00:57]} 14. Qe3 {[%emt 0:06:35]} O-O-O {[%emt 0:05:06]} 15. Qh3 {[%emt 0:16:40]} Kb8 {[%emt 0:01:02]} 16. fxe6 {[%emt 0:07:38]} fxe6 {[%emt 0:00:43]} 17. Nf5 {[%emt 0:07:04]} Bf8 {[%emt 0:00:44]} 18. Ne3 {[%emt 0:01:53]} Bh6 {[%emt 0:03:08]} 19. Rd4 {[%emt 0:05:16]} Bc8 {[%emt 0:10:45]} 20. Nc4 {[%emt 0:02:03]} Nc6 {[%emt 0:02:34]} 21. Rdd1 {[%emt 0:01:51]} d5 {[%emt 0:01:10]} 22. Nd2 {[%emt 0:02:47]} d4 {[%emt 0:00:45]} 23. Na4 {[%emt 0:00:50]} Bxd2 {[%emt 0:01:47]} 24. Rxd2 {[%emt 0:00:07]} Qa5 {[%emt 0:00:05]} 0-1

[Event "77th GEO-ch Women 2020"]
[Site "Tbilisi"]
[Date "2020.07.25"]
[Round "5.1"]
[White "Gvetadze, Sofio"]
[Black "Khotenashvili, Bela"]
[Result "1/2-1/2"]
[ECO "C77"]
[WhiteElo "2308"]
[BlackElo "2458"]
[Annotator "ChessBase"]
[PlyCount "73"]
[EventDate "2020.07.21"]
[EventType "tourn"]
[EventCountry "GEO"]
[SourceTitle "playchess.com"]
[Source "ChessBase"]
[SourceQuality "1"]
[TimeControl "5400+30"]

1. e4 {[%emt 0:00:00]} e5 {[%emt 0:00:00]} 2. Nf3 {[%emt 0:00:00]} Nc6 {[%emt 0:00:00]} 3. Bb5 {[%emt 0:00:00]} a6 {[%emt 0:00:00]} 4. Ba4 {[%emt 0:00:00]} Nf6 {[%emt 0:00:12]} 5. Qe2 {[%emt 0:00:12]} b5 {[%emt 0:04:33]} 6. Bb3 {[%emt 0:00:06]} Bc5 {[%emt 0:00:05]} 7. c3 {[%emt 0:00:52]} d6 {[%emt 0:01:00]} 8. h3 {[%emt 0:00:39]} Be6 {[%emt 0:07:57]} 9. O-O {[%emt 0:01:29]} O-O {[%emt 0:01:33]} 10. Rd1 {[%emt 0:01:15]} Re8 {[%emt 0:05:04]} 11. d3 {[%emt 0:02:44]} h6 {[%emt 0:00:35]} 12. Nbd2 {[%emt 0:00:31]} d5 {[%emt 0:09:13]} 13. a4 {[%emt 0:05:06]} Bb6 {[%emt 0:14:28]} 14. Nf1 {[%emt 0:07:40]} d4 {[%emt 0:09:50]} 15. Bxe6 {[%emt 0:00:37]} Rxe6 {[%emt 0:00:50]} 16. Ng3 {[%emt 0:00:30]} Nd7 {[%emt 0:08:46]} 17. Nf5 {[%emt 0:03:46]} Bc5 {[%emt 0:06:32]} 18. cxd4 {[%emt 0:05:25]} exd4 {[%emt 0:05:44]} 19. Bf4 {[%emt 0:00:52]} Rb8 {[%emt 0:06:13]} 20. axb5 {[%emt 0:00:26]} axb5 {[%emt 0:00:13]} 21. Rdc1 {[%emt 0:02:47]} Bb6 {[%emt 0:02:04]} 22. b4 {[%emt 0:17:23]} Nf8 {[%emt 0:02:25]} 23. Qd2 {[%emt 0:06:14]} Rc8 {[%emt 0:03:59]} 24. Ra6 {[%emt 0:24:17]} Kh7 {[%emt 0:04:45]} 25. Bxh6 {[%emt 0:05:33]} gxh6 {[%emt 0:00:24]} 26. Nxh6 {[%emt 0:00:15]} Rxh6 {[%emt 0:01:34]} 27. Ng5+ {[%emt 0:00:11]} Kg7 {[%emt 0:00:27]} 28. Nxf7 {[%emt 0:00:11]} Kxf7 {[%emt 0:00:17]} 29. Qxh6 {[%emt 0:00:06]} Ne7 {[%emt 0:03:49]} 30. Qh5+ {[%emt 0:03:45]} Kg7 {[%emt 0:01:23]} 31. Qe5+ {[%emt 0:04:00]} Kf7 {[%emt 0:00:12]} 32. Qxb5 {[%emt 0:03:49]} Qd6 {[%emt 0:00:51]} 33. f4 {[%emt 0:00:27]} Nd7 {[%emt 0:00:47]} 34. Qh5+ {[%emt 0:04:51]} Qg6 {[%emt 0:00:20]} 35. Qb5 {[%emt 0:00:21]} Qd6 {[%emt 0:00:42]} 36. Qh5+ {[%emt 0:00:27]} Qg6 {[%emt 0:00:01]} 37. Qb5 {[%emt 0:00:24]} 1/2-1/2

[Event "77th GEO-ch Women 2020"]
[Site "Tbilisi"]
[Date "2020.07.25"]
[Round "5.2"]
[White "Khukhashvili, Sopiko"]
[Black "Tsotsonava, Elene"]
[Result "1-0"]
[ECO "A06"]
[WhiteElo "2339"]
[BlackElo "2012"]
[Annotator "ChessBase"]
[PlyCount "51"]
[EventDate "2020.07.21"]
[EventType "tourn"]
[EventCountry "GEO"]
[SourceTitle "playchess.com"]
[Source "ChessBase"]
[SourceQuality "1"]
[TimeControl "5400+30"]

1. Nf3 {[%emt 0:00:00]} d5 {[%emt 0:00:00]} 2. b3 {[%emt 0:00:00]} Nf6 {[%emt 0:00:24]} 3. Bb2 {[%emt 0:00:00]} e6 {[%emt 0:00:05]} 4. d3 {[%emt 0:00:25]} c5 {[%emt 0:01:49]} 5. e3 {[%emt 0:00:35]} Nc6 {[%emt 0:00:27]} 6. Nbd2 {[%emt 0:00:06]} Be7 {[%emt 0:02:48]} 7. Be2 {[%emt 0:00:09]} O-O {[%emt 0:01:04]} 8. a3 {[%emt 0:01:22]} b5 {[%emt 0:12:18]} 9. c4 {[%emt 0:00:55]} bxc4 {[%emt 0:00:10]} 10. dxc4 {[%emt 0:00:13]} Rb8 {[%emt 0:11:44]} 11. Qc2 {[%emt 0:01:36]} a5 {[%emt 0:03:51]} 12. O-O {[%emt 0:01:01]} Ba6 {[%emt 0:03:29]} 13. Rfd1 {[%emt 0:01:31]} Qb6 {[%emt 0:00:50]} 14. Rab1 {[%emt 0:00:20]} Rfd8 {[%emt 0:02:33]} 15. Ba1 {[%emt 0:00:45]} d4 {[%emt 0:06:17]} 16. exd4 {[%emt 0:08:27]} cxd4 {[%emt 0:00:06]} 17. Ne4 {[%emt 0:00:19]} Nxe4 {[%emt 0:13:54]} 18. Qxe4 {[%emt 0:00:04]} Bxa3 {[%emt 0:09:30]} 19. Ng5 {[%emt 0:02:36]} h6 {[%emt 0:03:28]} 20. Qh7+ {[%emt 0:02:01]} Kf8 {[%emt 0:00:03]} 21. Nxf7 {[%emt 0:00:45]} Kxf7 {[%emt 0:01:53]} 22. Bh5+ {[%emt 0:00:03]} Ke7 {[%emt 0:00:46]} 23. Qxg7+ {[%emt 0:00:03]} Kd6 {[%emt 0:00:09]} 24. Bxd4 {[%emt 0:00:08]} Nxd4 {[%emt 0:00:49]} 25. Rxd4+ {[%emt 0:00:03]} Kc5 {[%emt 0:01:02]} 26. b4+ {[%emt 0:00:04]} 1-0

[Event "77th GEO-ch Women 2020"]
[Site "Tbilisi"]
[Date "2020.07.25"]
[Round "5.3"]
[White "Batsiashvili, Nino"]
[Black "Vakhania, Alexsandra"]
[Result "1-0"]
[ECO "C11"]
[WhiteElo "2457"]
[BlackElo "2138"]
[Annotator "ChessBase"]
[PlyCount "145"]
[EventDate "2020.07.21"]
[EventType "tourn"]
[EventCountry "GEO"]
[SourceTitle "playchess.com"]
[Source "ChessBase"]
[SourceQuality "1"]
[TimeControl "5400+30"]

1. d4 {[%emt 0:00:00]} e6 {[%emt 0:00:00]} 2. e4 {[%emt 0:02:52]} d5 {[%emt 0:00:08]} 3. Nc3 {[%emt 0:00:29]} Nf6 {[%emt 0:00:48]} 4. e5 {[%emt 0:01:08]} Ne4 {[%emt 0:00:22]} 5. Nce2 {[%emt 0:06:24]} f6 {[%emt 0:01:20]} 6. f3 {[%emt 0:02:21]} Ng5 {[%emt 0:00:11]} 7. exf6 {[%emt 0:07:47]} Qxf6 {[%emt 0:02:34]} 8. f4 {[%emt 0:01:51]} Ne4 {[%emt 0:01:24]} 9. Ng3 {[%emt 0:00:29]} Nxg3 {[%emt 0:15:21]} 10. hxg3 {[%emt 0:00:05]} c5 {[%emt 0:00:03]} 11. Nf3 {[%emt 0:09:47]} Nc6 {[%emt 0:00:40]} 12. Bb5 {[%emt 0:02:50]} Bd7 {[%emt 0:06:12]} 13. Bxc6 {[%emt 0:00:11]} Bxc6 {[%emt 0:03:10]} 14. Be3 {[%emt 0:00:12]} O-O-O {[%emt 0:00:25]} 15. Qd2 {[%emt 0:02:19]} c4 {[%emt 0:02:20]} 16. O-O-O {[%emt 0:03:23]} Bd6 {[%emt 0:00:20]} 17. Rde1 {[%emt 0:01:40]} Be8 {[%emt 0:00:57]} 18. g4 {[%emt 0:05:13]} h6 {[%emt 0:01:09]} 19. g5 {[%emt 0:01:57]} Qf5 {[%emt 0:04:15]} 20. g3 {[%emt 0:16:51]} Bg6 {[%emt 0:02:51]} 21. Nh4 {[%emt 0:00:17]} Qf7 {[%emt 0:12:46]} 22. gxh6 {[%emt 0:01:08]} Be4 {[%emt 0:02:15]} 23. hxg7 {[%emt 0:00:36]} Qxg7 {[%emt 0:00:18]} 24. Rhg1 {[%emt 0:00:37]} Kb8 {[%emt 0:01:03]} 25. Qc3 {[%emt 0:06:21]} Rc8 {[%emt 0:08:29]} 26. Bd2 {[%emt 0:00:16]} Rc6 {[%emt 0:00:43]} 27. Nf3 {[%emt 0:02:38]} Rb6 {[%emt 0:01:56]} 28. a3 {[%emt 0:06:53]} Qd7 {[%emt 0:24:53]} 29. Ng5 {[%emt 0:03:26]} Rc8 {[%emt 0:04:54]} 30. Nxe4 {[%emt 0:04:04]} dxe4 {[%emt 0:00:03]} 31. Qe3 {[%emt 0:01:06]} Bxa3 {[%emt 0:02:28]} 32. bxa3 {[%emt 0:01:49]} c3 {[%emt 0:00:04]} 33. Bxc3 {[%emt 0:00:08]} Rbc6 {[%emt 0:01:07]} 34. Kd2 {[%emt 0:01:53]} Rxc3 {[%emt 0:00:33]} 35. Qxc3 {[%emt 0:00:09]} Rxc3 {[%emt 0:00:02]} 36. Kxc3 {[%emt 0:00:01]} Qc6+ {[%emt 0:00:25]} 37. Kd2 {[%emt 0:00:07]} Qd5 {[%emt 0:00:49]} 38. Ke3 {[%emt 0:00:08]} Qc4 {[%emt 0:00:13]} 39. Re2 {[%emt 0:00:49]} Kc7 {[%emt 0:00:13]} 40. Rgg2 {[%emt 0:00:49]} Qc3+ {[%emt 0:00:24]} 41. Kxe4 {[%emt 0:00:10]} Kd6 {[%emt 0:00:22]} 42. g4 {[%emt 0:00:55]} Qc6+ {[%emt 0:00:44]} 43. Ke3 {[%emt 0:00:02]} Qc3+ {[%emt 0:00:08]} 44. Ke4 {[%emt 0:00:18]} Qc6+ {[%emt 0:00:06]} 45. Ke3 {[%emt 0:00:49]} Qc3+ {[%emt 0:00:25]} 46. Kf2 {[%emt 0:00:03]} Qxd4+ {[%emt 0:00:06]} 47. Kf3 {[%emt 0:00:09]} Qh8 {[%emt 0:01:15]} 48. Re3 {[%emt 0:02:19]} Qh3+ {[%emt 0:00:19]} 49. Kf2 {[%emt 0:00:17]} Qh4+ {[%emt 0:00:06]} 50. Ke2 {[%emt 0:00:25]} Qh1 {[%emt 0:00:11]} 51. Rf2 {[%emt 0:00:38]} Qg1 {[%emt 0:00:56]} 52. g5 {[%emt 0:00:08]} Qg4+ {[%emt 0:00:03]} 53. Kd2 {[%emt 0:00:35]} b5 {[%emt 0:01:00]} 54. Re4 {[%emt 0:01:02]} a5 {[%emt 0:00:30]} 55. Rfe2 {[%emt 0:00:08]} Kd7 {[%emt 0:00:07]} 56. Kc3 {[%emt 0:00:38]} Qf5 {[%emt 0:00:13]} 57. Rd4+ {[%emt 0:00:42]} Ke7 {[%emt 0:01:42]} 58. Re5 {[%emt 0:00:09]} Qh3+ {[%emt 0:00:30]} 59. Kb2 {[%emt 0:00:11]} b4 {[%emt 0:00:14]} 60. axb4 {[%emt 0:00:14]} axb4 {[%emt 0:00:21]} 61. Rxb4 {[%emt 0:00:07]} Qg3 {[%emt 0:00:31]} 62. Rbe4 {[%emt 0:00:14]} Kf7 {[%emt 0:00:34]} 63. Rxe6 {[%emt 0:00:06]} Qg2 {[%emt 0:00:47]} 64. g6+ {[%emt 0:02:39]} Kg7 {[%emt 0:00:26]} 65. f5 {[%emt 0:00:08]} Qf1 {[%emt 0:00:06]} 66. Rb6 {[%emt 0:01:21]} Qf2 {[%emt 0:02:16]} 67. Rb5 {[%emt 0:03:17]} Qa7 {[%emt 0:00:25]} 68. Reb4 {[%emt 0:00:44]} Qe3 {[%emt 0:00:17]} 69. Rd5 {[%emt 0:01:12]} Kf6 {[%emt 0:00:32]} 70. Rbb5 {[%emt 0:01:10]} Qa7 {[%emt 0:00:53]} 71. Rd6+ {[%emt 0:00:13]} Kg5 {[%emt 0:00:28]} 72. g7 {[%emt 0:01:10]} Qf7 {[%emt 0:00:42]} 73. g8=Q+ {[%emt 0:00:22]} 1-0

[Event "77th GEO-ch Women 2020"]
[Site "Tbilisi"]
[Date "2020.07.25"]
[Round "5.4"]
[White "Javakhishvili, Lela"]
[Black "Khomeriki, Nino"]
[Result "1-0"]
[ECO "A06"]
[WhiteElo "2475"]
[BlackElo "2319"]
[Annotator "ChessBase"]
[PlyCount "151"]
[EventDate "2020.07.21"]
[EventType "tourn"]
[EventCountry "GEO"]
[SourceTitle "playchess.com"]
[Source "ChessBase"]
[SourceQuality "1"]
[TimeControl "5400+30"]

1. Nf3 {[%emt 0:00:00]} d5 {[%emt 0:00:00]} 2. e3 {[%emt 0:00:00]} Nf6 {[%emt 0:00:00]} 3. c4 {[%emt 0:00:00]} e6 {[%emt 0:00:11]} 4. b3 {[%emt 0:00:04]} Bd6 {[%emt 0:01:25]} 5. Bb2 {[%emt 0:00:09]} O-O {[%emt 0:00:12]} 6. Nc3 {[%emt 0:00:39]} b6 {[%emt 0:01:00]} 7. Qc2 {[%emt 0:03:51]} c5 {[%emt 0:01:08]} 8. cxd5 {[%emt 0:00:42]} exd5 {[%emt 0:00:17]} 9. d4 {[%emt 0:04:02]} Nc6 {[%emt 0:04:51]} 10. Rd1 {[%emt 0:07:41]} cxd4 {[%emt 0:08:41]} 11. Nxd4 {[%emt 0:00:43]} Nxd4 {[%emt 0:00:19]} 12. Rxd4 {[%emt 0:01:15]} Be6 {[%emt 0:06:05]} 13. Ba6 {[%emt 0:02:46]} Be5 {[%emt 0:08:00]} 14. Rd2 {[%emt 0:04:34]} Qc7 {[%emt 0:08:21]} 15. Ne2 {[%emt 0:14:21]} Qxc2 {[%emt 0:05:40]} 16. Rxc2 {[%emt 0:00:07]} Bf5 {[%emt 0:00:05]} 17. Rd2 {[%emt 0:24:46]} Bxb2 {[%emt 0:03:22]} 18. Rxb2 {[%emt 0:00:02]} Bc8 {[%emt 0:00:48]} 19. Bb5 {[%emt 0:02:18]} Rd8 {[%emt 0:04:25]} 20. Nd4 {[%emt 0:00:44]} Bd7 {[%emt 0:00:12]} 21. Ba6 {[%emt 0:01:48]} Bc8 {[%emt 0:02:21]} 22. Be2 {[%emt 0:00:28]} Be6 {[%emt 0:01:11]} 23. f3 {[%emt 0:02:39]} Rac8 {[%emt 0:00:54]} 24. Kf2 {[%emt 0:02:00]} Bd7 {[%emt 0:01:34]} 25. Rd2 {[%emt 0:02:48]} g6 {[%emt 0:01:21]} 26. Rhd1 {[%emt 0:00:56]} Kg7 {[%emt 0:00:57]} 27. g4 {[%emt 0:05:04]} h6 {[%emt 0:00:38]} 28. h3 {[%emt 0:02:30]} a5 {[%emt 0:05:31]} 29. Bd3 {[%emt 0:02:46]} Rc5 {[%emt 0:01:26]} 30. Ne2 {[%emt 0:01:12]} Rdc8 {[%emt 0:02:46]} 31. a3 {[%emt 0:00:35]} R5c7 {[%emt 0:02:16]} 32. Nd4 {[%emt 0:03:23]} Rc3 {[%emt 0:01:44]} 33. a4 {[%emt 0:01:43]} Be8 {[%emt 0:03:59]} 34. Ke2 {[%emt 0:01:54]} Kf8 {[%emt 0:07:37]} 35. Rc2 {[%emt 0:00:29]} Rxc2+ {[%emt 0:00:39]} 36. Bxc2 {[%emt 0:00:12]} Nd7 {[%emt 0:02:23]} 37. h4 {[%emt 0:02:05]} Nc5 {[%emt 0:01:36]} 38. Kd2 {[%emt 0:02:58]} Ne6 {[%emt 0:01:09]} 39. Ne2 {[%emt 0:00:27]} Ke7 {[%emt 0:01:06]} 40. Rh1 {[%emt 0:02:09]} b5 {[%emt 0:05:35]} 41. h5 {[%emt 0:00:15]} bxa4 {[%emt 0:00:26]} 42. bxa4 {[%emt 0:00:21]} Nc5 {[%emt 0:04:45]} 43. hxg6 {[%emt 0:00:32]} fxg6 {[%emt 0:00:30]} 44. Rxh6 {[%emt 0:00:52]} Kf6 {[%emt 0:03:35]} 45. Nf4 {[%emt 0:01:55]} Kg7 {[%emt 0:00:50]} 46. g5 {[%emt 0:00:10]} Nxa4 {[%emt 0:00:38]} 47. Bxg6 {[%emt 0:00:26]} Bxg6 {[%emt 0:00:29]} 48. Rxg6+ {[%emt 0:00:05]} Kh7 {[%emt 0:00:21]} 49. Rh6+ {[%emt 0:00:32]} Kg7 {[%emt 0:00:01]} 50. Ra6 {[%emt 0:00:37]} Nc5 {[%emt 0:00:50]} 51. Ra7+ {[%emt 0:00:13]} Kg8 {[%emt 0:00:40]} 52. Nxd5 {[%emt 0:01:46]} Rd8 {[%emt 0:00:05]} 53. e4 {[%emt 0:00:04]} Ne6 {[%emt 0:00:03]} 54. Ke3 {[%emt 0:01:12]} Nxg5 {[%emt 0:00:12]} 55. Nf6+ {[%emt 0:00:38]} Kf8 {[%emt 0:00:12]} 56. Nh7+ {[%emt 0:00:48]} Nxh7 {[%emt 0:00:08]} 57. Rxh7 {[%emt 0:00:02]} Rd1 {[%emt 0:00:18]} 58. Ra7 {[%emt 0:00:02]} Ra1 {[%emt 0:00:04]} 59. Kf4 {[%emt 0:00:06]} a4 {[%emt 0:00:05]} 60. e5 {[%emt 0:00:13]} a3 {[%emt 0:00:04]} 61. Kf5 {[%emt 0:00:07]} a2 {[%emt 0:00:15]} 62. f4 {[%emt 0:00:09]} Kg8 {[%emt 0:00:21]} 63. e6 {[%emt 0:00:18]} Kh8 {[%emt 0:00:10]} 64. Kf6 {[%emt 0:01:12]} Rf1 {[%emt 0:00:12]} 65. Rxa2 {[%emt 0:00:18]} Rxf4+ {[%emt 0:00:04]} 66. Kg6 {[%emt 0:01:13]} Rg4+ {[%emt 0:01:33]} 67. Kf7 {[%emt 0:00:05]} Rf4+ {[%emt 0:02:44]} 68. Ke8 {[%emt 0:00:10]} Kg7 {[%emt 0:00:34]} 69. e7 {[%emt 0:01:35]} Re4 {[%emt 0:02:05]} 70. Rg2+ {[%emt 0:00:28]} Kh7 {[%emt 0:00:25]} 71. Kf7 {[%emt 0:00:37]} Rf4+ {[%emt 0:00:08]} 72. Ke6 {[%emt 0:00:02]} Re4+ {[%emt 0:00:14]} 73. Kf6 {[%emt 0:00:03]} Re1 {[%emt 0:00:49]} 74. Rg5 {[%emt 0:00:12]} Kh6 {[%emt 0:00:31]} 75. Re5 {[%emt 0:00:10]} Rf1+ {[%emt 0:00:05]} 76. Ke6 {[%emt 0:00:10]} 1-0